[Event "Titled Tuesday Blitz July 18 Early 2023"]
[White "Alfaro, William"]
[Black "Novikov, Evgenij"]
[WhiteFideId "6100457"]
[BlackFideId "4125380"]
[WhiteElo "2345"]
[BlackElo "2496"]
[Result "0-1"]
[Round "7"]
[TimeControl "180+2"]
[Date "2023.07.18"]
[WhiteClock "0:00:04"]
[BlackClock "0:01:00"]
[Board "127"]

1. e4 {[%clk 0:03:00]}  c5 {[%clk 0:02:58]} 2. b4 {[%clk 0:02:58]}  cxb4 {[%clk 0:02:57]} 3. a3 {[%clk 0:02:57]}  bxa3 {[%clk 0:02:58]} 4. Bxa3 {[%clk 0:02:55]}  d5 {[%clk 0:02:56]} 5. exd5 {[%clk 0:02:53]}  Qxd5 {[%clk 0:02:56]} 6. Nf3 {[%clk 0:02:48]}  Bg4 {[%clk 0:02:52]} 7. Nc3 {[%clk 0:02:30]}  Qe6+ {[%clk 0:02:48]} 8. Be2 {[%clk 0:02:27]}  Bxf3 {[%clk 0:02:47]} 9. gxf3 {[%clk 0:02:28]}  Nf6 {[%clk 0:02:33]} 10. Rb1 {[%clk 0:02:23]}  b6 {[%clk 0:02:28]} 11. O-O {[%clk 0:02:16]}  g5 {[%clk 0:02:11]} 12. Re1 {[%clk 0:02:09]}  Nbd7 {[%clk 0:02:06]} 13. Nb5 {[%clk 0:02:05]}  Qc6 {[%clk 0:01:51]} 14. Nd6+ {[%clk 0:01:57]}  Kd8 {[%clk 0:01:18]} 15. Nxf7+ {[%clk 0:01:56]}  Kc7 {[%clk 0:01:13]} 16. Nxh8 {[%clk 0:01:55]}  e5 {[%clk 0:01:10]} 17. Nf7 {[%clk 0:01:53]}  Bxa3 {[%clk 0:01:07]} 18. f4 {[%clk 0:00:22]}  gxf4 {[%clk 0:01:02]} 19. d3 {[%clk 0:00:04]}  Rg8+ {[%clk 0:01:00]} 0-1


[Site "https://www.chess.com"]

[Event "Titled Tuesday Blitz July 18 Early 2023"]
[White "MateoReyes"]
[Black "Dwilewicz, Katarzyna"]
[BlackFideId "1148486"]
[WhiteElo "2490"]
[BlackElo "2332"]
[Result "1-0"]
[Round "7"]
[TimeControl "180+2"]
[Date "2023.07.18"]
[WhiteClock "0:00:40"]
[BlackClock "0:00:00"]
[Board "128"]

1. Nf3 {[%clk 0:03:00]}  Nf6 {[%clk 0:02:57]} 2. d4 {[%clk 0:03:00]}  e6 {[%clk 0:02:57]} 3. c4 {[%clk 0:03:00]}  b6 {[%clk 0:02:54]} 4. g3 {[%clk 0:03:00]}  Bb7 {[%clk 0:02:55]} 5. Bg2 {[%clk 0:03:00]}  Be7 {[%clk 0:02:54]} 6. O-O {[%clk 0:03:00]}  O-O {[%clk 0:02:55]} 7. d5 {[%clk 0:02:58]}  exd5 {[%clk 0:02:50]} 8. Nh4 {[%clk 0:02:58]}  c6 {[%clk 0:02:43]} 9. cxd5 {[%clk 0:02:47]}  Nxd5 {[%clk 0:02:39]} 10. Nf5 {[%clk 0:02:47]}  d6 {[%clk 0:02:25]} 11. e4 {[%clk 0:02:45]}  Nf6 {[%clk 0:02:22]} 12. Bf4 {[%clk 0:02:44]}  d5 {[%clk 0:02:15]} 13. e5 {[%clk 0:02:42]}  Ne4 {[%clk 0:01:57]} 14. Nc3 {[%clk 0:02:33]}  Nxc3 {[%clk 0:01:52]} 15. bxc3 {[%clk 0:02:33]}  Nd7 {[%clk 0:01:52]} 16. Qg4 {[%clk 0:02:31]}  g6 {[%clk 0:01:47]} 17. Nh6+ {[%clk 0:02:25]}  Kh8 {[%clk 0:01:38]} 18. Rfe1 {[%clk 0:02:16]}  Nc5 {[%clk 0:01:31]} 19. Rad1 {[%clk 0:02:12]}  Bc8 {[%clk 0:01:30]} 20. Qe2 {[%clk 0:02:06]}  Ne6 {[%clk 0:01:23]} 21. Bc1 {[%clk 0:02:03]}  Bg5 {[%clk 0:01:19]} 22. Ng4 {[%clk 0:01:58]}  Bd7 {[%clk 0:01:11]} 23. h4 {[%clk 0:01:56]}  Be7 {[%clk 0:01:01]} 24. Bh6 {[%clk 0:01:47]}  Rg8 {[%clk 0:00:55]} 25. c4 {[%clk 0:01:42]}  d4 {[%clk 0:00:53]} 26. Qf3 {[%clk 0:01:32]}  Be8 {[%clk 0:00:27]} 27. Nf6 {[%clk 0:01:23]}  Bxf6 {[%clk 0:00:24]} 28. exf6 {[%clk 0:01:23]}  Rc8 {[%clk 0:00:20]} 29. Rxe6 {[%clk 0:01:15]}  fxe6 {[%clk 0:00:20]} 30. f7 {[%clk 0:01:15]}  Bxf7 {[%clk 0:00:13]} 31. Qxf7 {[%clk 0:01:14]}  Rc7 {[%clk 0:00:07]} 32. Qxe6 {[%clk 0:01:11]}  Re8 {[%clk 0:00:04]} 33. Qg4 {[%clk 0:01:04]}  c5 {[%clk 0:00:05]} 34. Bd5 {[%clk 0:01:01]}  Rce7 {[%clk 0:00:04]} 35. Kg2 {[%clk 0:00:57]}  Qd6 {[%clk 0:00:03]} 36. Bg5 {[%clk 0:00:54]}  Rg7 {[%clk 0:00:02]} 37. Qf3 {[%clk 0:00:46]}  h5 {[%clk 0:00:02]} 38. Bf6 {[%clk 0:00:43]}  Rf8 {[%clk 0:00:02]} 39. Bxg7+ {[%clk 0:00:43]}  Kxg7 {[%clk 0:00:03]} 40. Qe2 {[%clk 0:00:42]}  Qf6 {[%clk 0:00:02]} 41. Re1 {[%clk 0:00:41]}  Kh6 {[%clk 0:00:02]} 42. Qd2+ {[%clk 0:00:40]}  Kg7 {[%clk 0:00:00]} 43. f4 {[%clk 0:00:40]} 1-0


[Site "https://www.chess.com"]

[Event "Titled Tuesday Blitz July 18 Early 2023"]
[White "DCacheiro"]
[Black "Zaim, Marian"]
[BlackFideId "1204114"]
[WhiteElo "2465"]
[BlackElo "2311"]
[Result "1-0"]
[Round "7"]
[TimeControl "180+2"]
[Date "2023.07.18"]
[WhiteClock "0:00:17"]
[BlackClock "0:00:13"]
[Board "131"]

1. e4 {[%clk 0:03:00]}  d6 {[%clk 0:02:56]} 2. d4 {[%clk 0:03:00]}  Nf6 {[%clk 0:02:56]} 3. Nc3 {[%clk 0:03:01]}  g6 {[%clk 0:02:56]} 4. Nf3 {[%clk 0:03:01]}  Bg7 {[%clk 0:02:56]} 5. Be2 {[%clk 0:03:02]}  O-O {[%clk 0:02:56]} 6. O-O {[%clk 0:03:03]}  Bg4 {[%clk 0:02:54]} 7. Be3 {[%clk 0:03:01]}  Nc6 {[%clk 0:02:54]} 8. d5 {[%clk 0:02:54]}  Bxf3 {[%clk 0:02:53]} 9. Bxf3 {[%clk 0:02:55]}  Ne5 {[%clk 0:02:53]} 10. Be2 {[%clk 0:02:56]}  c5 {[%clk 0:02:53]} 11. f4 {[%clk 0:02:51]}  Ned7 {[%clk 0:02:53]} 12. Bf3 {[%clk 0:02:51]}  Ne8 {[%clk 0:02:50]} 13. Qd2 {[%clk 0:02:47]}  Nc7 {[%clk 0:02:49]} 14. a4 {[%clk 0:02:47]}  Rb8 {[%clk 0:02:48]} 15. Ra2 {[%clk 0:02:23]}  b6 {[%clk 0:02:48]} 16. Ne2 {[%clk 0:02:13]}  a6 {[%clk 0:02:47]} 17. c3 {[%clk 0:01:58]}  b5 {[%clk 0:02:46]} 18. axb5 {[%clk 0:01:56]}  axb5 {[%clk 0:02:46]} 19. b4 {[%clk 0:01:55]}  Rb7 {[%clk 0:02:01]} 20. bxc5 {[%clk 0:01:45]}  Nxc5 {[%clk 0:02:01]} 21. Nd4 {[%clk 0:01:42]}  Qd7 {[%clk 0:01:57]} 22. Nc6 {[%clk 0:01:34]}  Ra8 {[%clk 0:01:50]} 23. Rxa8+ {[%clk 0:01:31]}  Nxa8 {[%clk 0:01:50]} 24. Ra1 {[%clk 0:01:32]}  Nb6 {[%clk 0:01:48]} 25. Bxc5 {[%clk 0:01:28]}  dxc5 {[%clk 0:01:45]} 26. e5 {[%clk 0:01:18]}  h5 {[%clk 0:01:36]} 27. h3 {[%clk 0:01:17]}  Nc4 {[%clk 0:01:26]} 28. Qf2 {[%clk 0:01:12]}  Bh6 {[%clk 0:01:21]} 29. Be4 {[%clk 0:01:04]}  b4 {[%clk 0:01:16]} 30. Ra8+ {[%clk 0:00:55]}  Kg7 {[%clk 0:01:12]} 31. Qxc5 {[%clk 0:00:19]}  Nd2 {[%clk 0:01:12]} 32. e6 {[%clk 0:00:16]}  fxe6 {[%clk 0:01:03]} 33. Qd4+ {[%clk 0:00:16]}  e5 {[%clk 0:00:47]} 34. Qxe5+ {[%clk 0:00:15]}  Kf7 {[%clk 0:00:47]} 35. Nd8+ {[%clk 0:00:16]}  Qxd8 {[%clk 0:00:15]} 36. Rxd8 {[%clk 0:00:17]}  bxc3 {[%clk 0:00:14]} 37. Qe6+ {[%clk 0:00:17]}  Kg7 {[%clk 0:00:13]} 38. Qxg6# {[%clk 0:00:17]} 1-0


[Site "https://www.chess.com"]

[Event "Titled Tuesday Blitz July 18 Early 2023"]
[White "Luxama, Jacques Muller"]
[Black "Begunov, Konstantin"]
[WhiteFideId "11900113"]
[BlackFideId "4118510"]
[WhiteElo "2261"]
[BlackElo "2455"]
[Result "0-1"]
[Round "7"]
[TimeControl "180+2"]
[Date "2023.07.18"]
[WhiteClock "0:00:43"]
[BlackClock "0:00:17"]
[Board "132"]

1. e4 {[%clk 0:03:00]}  c5 {[%clk 0:02:58]} 2. Nf3 {[%clk 0:03:00]}  d6 {[%clk 0:02:58]} 3. Bb5+ {[%clk 0:03:00]}  Bd7 {[%clk 0:02:58]} 4. Bxd7+ {[%clk 0:03:00]}  Qxd7 {[%clk 0:02:59]} 5. O-O {[%clk 0:03:00]}  Nf6 {[%clk 0:03:00]} 6. Re1 {[%clk 0:03:00]}  Nc6 {[%clk 0:03:00]} 7. c3 {[%clk 0:03:00]}  e6 {[%clk 0:03:00]} 8. d4 {[%clk 0:03:00]}  cxd4 {[%clk 0:03:01]} 9. cxd4 {[%clk 0:03:01]}  d5 {[%clk 0:03:02]} 10. e5 {[%clk 0:03:01]}  Ne4 {[%clk 0:03:03]} 11. a3 {[%clk 0:03:01]}  Be7 {[%clk 0:03:01]} 12. Qd3 {[%clk 0:03:01]}  O-O {[%clk 0:02:56]} 13. Nbd2 {[%clk 0:03:01]}  Nxd2 {[%clk 0:02:55]} 14. Bxd2 {[%clk 0:03:01]}  Rac8 {[%clk 0:02:51]} 15. Rac1 {[%clk 0:03:00]}  a6 {[%clk 0:02:44]} 16. h4 {[%clk 0:02:58]}  b5 {[%clk 0:02:38]} 17. Ng5 {[%clk 0:02:51]}  Bxg5 {[%clk 0:02:31]} 18. hxg5 {[%clk 0:02:50]}  Ne7 {[%clk 0:02:29]} 19. g4 {[%clk 0:02:49]}  Rxc1 {[%clk 0:02:28]} 20. Rxc1 {[%clk 0:02:45]}  Rc8 {[%clk 0:02:28]} 21. Re1 {[%clk 0:02:45]}  Rc4 {[%clk 0:02:19]} 22. Kg2 {[%clk 0:02:44]}  Qc6 {[%clk 0:02:15]} 23. Rh1 {[%clk 0:02:41]}  Ng6 {[%clk 0:02:15]} 24. f4 {[%clk 0:02:26]}  Rc2 {[%clk 0:02:12]} 25. Kg3 {[%clk 0:02:25]}  Qc4 {[%clk 0:02:10]} 26. Qxc4 {[%clk 0:02:03]}  dxc4 {[%clk 0:02:09]} 27. Bc3 {[%clk 0:01:59]}  Ne7 {[%clk 0:02:07]} 28. a4 {[%clk 0:01:49]}  Nd5 {[%clk 0:01:51]} 29. axb5 {[%clk 0:01:48]}  axb5 {[%clk 0:01:51]} 30. Ra1 {[%clk 0:01:47]}  g6 {[%clk 0:01:52]} 31. Ba5 {[%clk 0:01:43]}  Rxb2 {[%clk 0:01:15]} 32. Bd8 {[%clk 0:01:42]}  Kf8 {[%clk 0:01:07]} 33. Ra8 {[%clk 0:01:25]}  Ke8 {[%clk 0:01:07]} 34. Bb6+ {[%clk 0:01:17]}  Kd7 {[%clk 0:01:06]} 35. Bc5 {[%clk 0:01:12]}  Rb3+ {[%clk 0:00:51]} 36. Kf2 {[%clk 0:01:11]}  c3 {[%clk 0:00:45]} 37. Ra7+ {[%clk 0:01:09]}  Kc6 {[%clk 0:00:46]} 38. Ke1 {[%clk 0:01:02]}  Rb1+ {[%clk 0:00:42]} 39. Ke2 {[%clk 0:01:02]}  c2 {[%clk 0:00:42]} 40. Ba3 {[%clk 0:00:58]}  b4 {[%clk 0:00:37]} 41. Kd2 {[%clk 0:00:57]}  b3 {[%clk 0:00:23]} 42. Rxf7 {[%clk 0:00:53]}  Rd1+ {[%clk 0:00:19]} 43. Ke2 {[%clk 0:00:51]}  Nc3+ {[%clk 0:00:16]} 44. Ke3 {[%clk 0:00:48]}  Nd5+ {[%clk 0:00:17]} 45. Ke2 {[%clk 0:00:47]}  c1=Q {[%clk 0:00:17]} 46. Bxc1 {[%clk 0:00:46]}  Rxc1 {[%clk 0:00:18]} 47. Rxh7 {[%clk 0:00:46]}  b2 {[%clk 0:00:17]} 48. Rg7 {[%clk 0:00:43]}  b1=Q {[%clk 0:00:17]} 49. Rxg6 {[%clk 0:00:44]}  Qxg6 {[%clk 0:00:17]} 50. Kd2 {[%clk 0:00:43]}  Qc2# {[%clk 0:00:17]} 0-1


[Site "https://www.chess.com"]

[Event "Titled Tuesday Blitz July 18 Early 2023"]
[White "La Villa Rivas, Marlon Javier"]
[Black "Cheer_Down"]
[WhiteFideId "3519546"]
[WhiteElo "2254"]
[BlackElo "2452"]
[Result "1-0"]
[Round "7"]
[TimeControl "180+2"]
[Date "2023.07.18"]
[WhiteClock "0:00:15"]
[BlackClock "0:00:00"]
[Board "133"]

1. e4 {[%clk 0:03:00]}  c5 {[%clk 0:02:59]} 2. Nf3 {[%clk 0:03:00]}  d6 {[%clk 0:02:59]} 3. d4 {[%clk 0:02:59]}  cxd4 {[%clk 0:02:59]} 4. Nxd4 {[%clk 0:02:59]}  Nf6 {[%clk 0:02:59]} 5. Nc3 {[%clk 0:03:00]}  a6 {[%clk 0:02:58]} 6. Bg5 {[%clk 0:02:59]}  e6 {[%clk 0:02:57]} 7. f4 {[%clk 0:02:57]}  h6 {[%clk 0:02:55]} 8. Bh4 {[%clk 0:02:57]}  Qb6 {[%clk 0:02:54]} 9. Qd3 {[%clk 0:02:57]}  Qxb2 {[%clk 0:02:53]} 10. Rb1 {[%clk 0:02:57]}  Qa3 {[%clk 0:02:52]} 11. f5 {[%clk 0:02:57]}  Be7 {[%clk 0:02:39]} 12. fxe6 {[%clk 0:02:54]}  fxe6 {[%clk 0:02:38]} 13. Be2 {[%clk 0:02:46]}  Qc5 {[%clk 0:02:22]} 14. Bf2 {[%clk 0:02:38]}  Qa5 {[%clk 0:02:22]} 15. O-O {[%clk 0:02:37]}  Nc6 {[%clk 0:02:18]} 16. Nxc6 {[%clk 0:02:35]}  bxc6 {[%clk 0:02:18]} 17. e5 {[%clk 0:02:35]}  Qxe5 {[%clk 0:02:16]} 18. Qg6+ {[%clk 0:02:34]}  Kd7 {[%clk 0:02:08]} 19. Na4 {[%clk 0:02:23]}  Qxe2 {[%clk 0:01:48]} 20. Nb6+ {[%clk 0:02:22]}  Kd8 {[%clk 0:01:48]} 21. Nxa8 {[%clk 0:02:22]}  c5 {[%clk 0:01:42]} 22. Bxc5 {[%clk 0:02:11]}  dxc5 {[%clk 0:01:37]} 23. Rfd1+ {[%clk 0:02:11]}  Nd5 {[%clk 0:01:36]} 24. c4 {[%clk 0:02:07]}  Qxc4 {[%clk 0:01:33]} 25. Nb6 {[%clk 0:02:07]}  Qxa2 {[%clk 0:01:17]} 26. Nxc8 {[%clk 0:02:06]}  Bf6 {[%clk 0:00:59]} 27. Nd6 {[%clk 0:01:55]}  Kc7 {[%clk 0:00:51]} 28. Ne4 {[%clk 0:01:49]}  Bd4+ {[%clk 0:00:45]} 29. Kh1 {[%clk 0:01:48]}  Rf8 {[%clk 0:00:37]} 30. Qxe6 {[%clk 0:01:46]}  Rd8 {[%clk 0:00:17]} 31. Qf7+ {[%clk 0:01:06]}  Rd7 {[%clk 0:00:17]} 32. Rb7+ {[%clk 0:01:06]}  Kxb7 {[%clk 0:00:14]} 33. Qxd7+ {[%clk 0:01:06]}  Nc7 {[%clk 0:00:14]} 34. Nd6+ {[%clk 0:01:05]}  Kb6 {[%clk 0:00:12]} 35. Nc8+ {[%clk 0:01:05]}  Kb7 {[%clk 0:00:12]} 36. Nd6+ {[%clk 0:01:05]}  Kb6 {[%clk 0:00:12]} 37. Qc8 {[%clk 0:00:47]}  Nb5 {[%clk 0:00:11]} 38. Qb7+ {[%clk 0:00:47]}  Ka5 {[%clk 0:00:11]} 39. Nxb5 {[%clk 0:00:47]}  Qb3 {[%clk 0:00:09]} 40. Ra1+ {[%clk 0:00:45]}  Bxa1 {[%clk 0:00:08]} 41. Qc7+ {[%clk 0:00:27]}  Kxb5 {[%clk 0:00:08]} 42. Qb7+ {[%clk 0:00:27]}  Kc4 {[%clk 0:00:07]} 43. Qxa6+ {[%clk 0:00:27]}  Kd5 {[%clk 0:00:04]} 44. Qxa1 {[%clk 0:00:28]}  c4 {[%clk 0:00:05]} 45. h3 {[%clk 0:00:26]}  c3 {[%clk 0:00:04]} 46. Qa5+ {[%clk 0:00:27]}  Kc4 {[%clk 0:00:04]} 47. Qc7+ {[%clk 0:00:26]}  Kd3 {[%clk 0:00:04]} 48. Qd6+ {[%clk 0:00:24]}  Ke2 {[%clk 0:00:04]} 49. Qe7+ {[%clk 0:00:24]}  Kd3 {[%clk 0:00:05]} 50. Qd7+ {[%clk 0:00:24]}  Ke2 {[%clk 0:00:05]} 51. Qxg7 {[%clk 0:00:23]}  c2 {[%clk 0:00:04]} 52. Qe5+ {[%clk 0:00:23]}  Kd1 {[%clk 0:00:05]} 53. Qd4+ {[%clk 0:00:23]}  Ke2 {[%clk 0:00:05]} 54. Qe4+ {[%clk 0:00:22]}  Kd2 {[%clk 0:00:05]} 55. Qd4+ {[%clk 0:00:22]}  Qd3 {[%clk 0:00:05]} 56. Qb4+ {[%clk 0:00:23]}  Kd1 {[%clk 0:00:05]} 57. Qa4 {[%clk 0:00:17]}  Ke1 {[%clk 0:00:05]} 58. Qb4+ {[%clk 0:00:16]}  Qd2 {[%clk 0:00:05]} 59. Qe4+ {[%clk 0:00:16]}  Kd1 {[%clk 0:00:05]} 60. Qg4+ {[%clk 0:00:16]}  Qe2 {[%clk 0:00:05]} 61. Qa4 {[%clk 0:00:17]}  Ke1 {[%clk 0:00:06]} 62. Qb4+ {[%clk 0:00:16]}  Kf1 {[%clk 0:00:06]} 63. Qf4+ {[%clk 0:00:16]}  Qf2 {[%clk 0:00:06]} 64. Qc1+ {[%clk 0:00:16]}  Qe1 {[%clk 0:00:04]} 65. Qxc2 {[%clk 0:00:17]}  Qe3 {[%clk 0:00:03]} 66. Qf5+ {[%clk 0:00:17]}  Ke2 {[%clk 0:00:02]} 67. Kh2 {[%clk 0:00:17]}  Kd2 {[%clk 0:00:01]} 68. Qd5+ {[%clk 0:00:17]}  Ke2 {[%clk 0:00:01]} 69. Qc4+ {[%clk 0:00:17]}  Kf2 {[%clk 0:00:01]} 70. Qa2+ {[%clk 0:00:16]}  Kf1 {[%clk 0:00:01]} 71. Qb1+ {[%clk 0:00:17]}  Ke2 {[%clk 0:00:01]} 72. Qc2+ {[%clk 0:00:17]}  Ke1 {[%clk 0:00:01]} 73. Qf5 {[%clk 0:00:15]}  Ke2 {[%clk 0:00:01]} 74. Qg4+ {[%clk 0:00:16]}  Kf2 {[%clk 0:00:00]} 75. Qh4+ {[%clk 0:00:15]} 1-0


[Site "https://www.chess.com"]

[Event "Titled Tuesday Blitz July 18 Early 2023"]
[White "Gaal, Zsoka"]
[Black "UgarteCesar"]
[WhiteFideId "777765"]
[WhiteElo "2432"]
[BlackElo "2196"]
[Result "0-1"]
[Round "7"]
[TimeControl "180+2"]
[Date "2023.07.18"]
[WhiteClock "0:00:06"]
[BlackClock "0:01:26"]
[Board "134"]

1. Nf3 {[%clk 0:03:00]}  d5 {[%clk 0:02:59]} 2. b3 {[%clk 0:02:59]}  Nf6 {[%clk 0:02:58]} 3. Bb2 {[%clk 0:03:00]}  e6 {[%clk 0:02:59]} 4. g3 {[%clk 0:02:58]}  Nbd7 {[%clk 0:02:59]} 5. Bg2 {[%clk 0:02:58]}  a5 {[%clk 0:02:59]} 6. O-O {[%clk 0:02:59]}  a4 {[%clk 0:02:59]} 7. c4 {[%clk 0:02:59]}  c6 {[%clk 0:02:59]} 8. d3 {[%clk 0:02:58]}  Be7 {[%clk 0:02:59]} 9. Nbd2 {[%clk 0:02:54]}  O-O {[%clk 0:02:58]} 10. e4 {[%clk 0:02:53]}  Nc5 {[%clk 0:02:55]} 11. Qe2 {[%clk 0:02:39]}  dxe4 {[%clk 0:02:54]} 12. dxe4 {[%clk 0:02:40]}  Qd3 {[%clk 0:02:53]} 13. Qxd3 {[%clk 0:02:31]}  Nxd3 {[%clk 0:02:54]} 14. Bc3 {[%clk 0:02:32]}  Nc5 {[%clk 0:02:43]} 15. e5 {[%clk 0:02:09]}  Nfe4 {[%clk 0:02:41]} 16. Bb4 {[%clk 0:02:09]}  Nxd2 {[%clk 0:02:30]} 17. Nxd2 {[%clk 0:02:10]}  Re8 {[%clk 0:02:29]} 18. Rfd1 {[%clk 0:02:04]}  axb3 {[%clk 0:02:21]} 19. Bxc5 {[%clk 0:01:23]}  b2 {[%clk 0:02:13]} 20. Rab1 {[%clk 0:01:23]}  Bxc5 {[%clk 0:02:12]} 21. Ne4 {[%clk 0:01:15]}  Ba3 {[%clk 0:02:09]} 22. Nd6 {[%clk 0:01:12]}  Rd8 {[%clk 0:02:04]} 23. Be4 {[%clk 0:01:03]}  f5 {[%clk 0:01:59]} 24. Bc2 {[%clk 0:00:34]}  Kf8 {[%clk 0:01:57]} 25. Rd2 {[%clk 0:00:18]}  Ke7 {[%clk 0:01:56]} 26. Rbd1 {[%clk 0:00:18]}  Bxd6 {[%clk 0:01:43]} 27. exd6+ {[%clk 0:00:19]}  Kf6 {[%clk 0:01:44]} 28. Bb1 {[%clk 0:00:20]}  Ra4 {[%clk 0:01:31]} 29. d7 {[%clk 0:00:08]}  Bxd7 {[%clk 0:01:24]} 30. Rxd7 {[%clk 0:00:09]}  Rxd7 {[%clk 0:01:24]} 31. Rxd7 {[%clk 0:00:10]}  Rxc4 {[%clk 0:01:24]} 32. Rxb7 {[%clk 0:00:10]}  Rc1+ {[%clk 0:01:24]} 33. Kg2 {[%clk 0:00:11]}  Rxb1 {[%clk 0:01:24]} 34. a4 {[%clk 0:00:10]}  c5 {[%clk 0:01:24]} 35. a5 {[%clk 0:00:08]}  c4 {[%clk 0:01:24]} 36. a6 {[%clk 0:00:08]}  c3 {[%clk 0:01:25]} 37. a7 {[%clk 0:00:06]}  Ra1 {[%clk 0:01:26]} 0-1


[Site "https://www.chess.com"]

[Event "Titled Tuesday Blitz July 18 Early 2023"]
[White "Filgueira, Hernan"]
[Black "Mejia, Cherry Ann"]
[WhiteFideId "101770"]
[BlackFideId "5206880"]
[WhiteElo "2575"]
[BlackElo "2356"]
[Result "0-1"]
[Round "7"]
[TimeControl "180+2"]
[Date "2023.07.18"]
[WhiteClock "0:00:00"]
[BlackClock "0:00:18"]
[Board "136"]

1. e4 {[%clk 0:02:55]}  c5 {[%clk 0:02:59]} 2. Nf3 {[%clk 0:02:54]}  Nc6 {[%clk 0:03:00]} 3. Bb5 {[%clk 0:02:53]}  Qb6 {[%clk 0:02:59]} 4. Nc3 {[%clk 0:02:52]}  e6 {[%clk 0:02:59]} 5. O-O {[%clk 0:02:50]}  a6 {[%clk 0:03:00]} 6. Bxc6 {[%clk 0:02:49]}  Qxc6 {[%clk 0:03:00]} 7. d4 {[%clk 0:02:50]}  cxd4 {[%clk 0:03:01]} 8. Nxd4 {[%clk 0:02:50]}  Qc7 {[%clk 0:03:02]} 9. Kh1 {[%clk 0:02:21]}  Nf6 {[%clk 0:02:59]} 10. f4 {[%clk 0:02:20]}  d6 {[%clk 0:02:59]} 11. e5 {[%clk 0:02:19]}  dxe5 {[%clk 0:02:59]} 12. fxe5 {[%clk 0:02:20]}  Qxe5 {[%clk 0:02:59]} 13. Bf4 {[%clk 0:02:18]}  Qa5 {[%clk 0:02:57]} 14. Re1 {[%clk 0:01:50]}  Be7 {[%clk 0:02:57]} 15. Nb3 {[%clk 0:01:17]}  Qd8 {[%clk 0:02:54]} 16. Qf3 {[%clk 0:01:17]}  O-O {[%clk 0:02:47]} 17. Rad1 {[%clk 0:01:16]}  Qb6 {[%clk 0:02:46]} 18. Be3 {[%clk 0:01:10]}  Qc7 {[%clk 0:02:27]} 19. Na4 {[%clk 0:00:58]}  Bd7 {[%clk 0:02:04]} 20. Nb6 {[%clk 0:00:54]}  Rad8 {[%clk 0:02:03]} 21. Nxd7 {[%clk 0:00:27]}  Rxd7 {[%clk 0:02:03]} 22. Rxd7 {[%clk 0:00:27]}  Qxd7 {[%clk 0:02:00]} 23. c4 {[%clk 0:00:26]}  Rc8 {[%clk 0:01:55]} 24. c5 {[%clk 0:00:26]}  h6 {[%clk 0:01:53]} 25. h3 {[%clk 0:00:25]}  Nd5 {[%clk 0:01:50]} 26. Bf2 {[%clk 0:00:24]}  Bf6 {[%clk 0:01:49]} 27. Re2 {[%clk 0:00:21]}  Qb5 {[%clk 0:01:43]} 28. g4 {[%clk 0:00:16]}  Qc4 {[%clk 0:01:42]} 29. h4 {[%clk 0:00:15]}  Qf4 {[%clk 0:01:24]} 30. Qxf4 {[%clk 0:00:14]}  Nxf4 {[%clk 0:01:25]} 31. Rd2 {[%clk 0:00:15]}  Nd5 {[%clk 0:01:24]} 32. Na5 {[%clk 0:00:15]}  Rc7 {[%clk 0:01:24]} 33. a3 {[%clk 0:00:14]}  Be5 {[%clk 0:01:12]} 34. b4 {[%clk 0:00:14]}  Bf4 {[%clk 0:00:48]} 35. Rd3 {[%clk 0:00:14]}  g5 {[%clk 0:00:42]} 36. hxg5 {[%clk 0:00:13]}  hxg5 {[%clk 0:00:41]} 37. Kg2 {[%clk 0:00:13]}  Kg7 {[%clk 0:00:40]} 38. Kf3 {[%clk 0:00:13]}  Kg6 {[%clk 0:00:39]} 39. Nc4 {[%clk 0:00:12]}  f5 {[%clk 0:00:38]} 40. gxf5+ {[%clk 0:00:11]}  Kxf5 {[%clk 0:00:39]} 41. Kg2 {[%clk 0:00:11]}  g4 {[%clk 0:00:35]} 42. Rd1 {[%clk 0:00:10]}  Rh7 {[%clk 0:00:34]} 43. Na5 {[%clk 0:00:09]}  Rh2+ {[%clk 0:00:31]} 44. Kg1 {[%clk 0:00:09]}  g3 {[%clk 0:00:31]} 45. Bd4 {[%clk 0:00:09]}  Be3+ {[%clk 0:00:28]} 46. Bxe3 {[%clk 0:00:07]}  Nxe3 {[%clk 0:00:29]} 47. Rd8 {[%clk 0:00:07]}  Rg2+ {[%clk 0:00:26]} 48. Kh1 {[%clk 0:00:07]}  Rf2 {[%clk 0:00:18]} 49. Rf8+ {[%clk 0:00:00]}  Ke4 {[%clk 0:00:18]} 0-1


[Site "https://www.chess.com"]

[Event "Titled Tuesday Blitz July 18 Early 2023"]
[White "Borrmann, Laurenz"]
[Black "Llanos, Guillermo"]
[WhiteFideId "312187930"]
[BlackFideId "100358"]
[WhiteElo "2506"]
[BlackElo "2338"]
[Result "0-1"]
[Round "7"]
[TimeControl "180+2"]
[Date "2023.07.18"]
[WhiteClock "0:00:00"]
[BlackClock "0:00:56"]
[Board "139"]

1. d4 {[%clk 0:03:00]}  Nf6 {[%clk 0:03:00]} 2. c4 {[%clk 0:03:00]}  b6 {[%clk 0:03:01]} 3. Nc3 {[%clk 0:02:54]}  Bb7 {[%clk 0:03:00]} 4. Qc2 {[%clk 0:02:37]}  d5 {[%clk 0:03:00]} 5. cxd5 {[%clk 0:02:36]}  Nxd5 {[%clk 0:03:00]} 6. e4 {[%clk 0:02:37]}  Nxc3 {[%clk 0:03:00]} 7. bxc3 {[%clk 0:02:38]}  g6 {[%clk 0:02:52]} 8. Nf3 {[%clk 0:02:31]}  Bg7 {[%clk 0:02:51]} 9. h4 {[%clk 0:02:23]}  h6 {[%clk 0:02:50]} 10. h5 {[%clk 0:02:19]}  g5 {[%clk 0:02:49]} 11. Bb5+ {[%clk 0:02:16]}  c6 {[%clk 0:02:49]} 12. Bd3 {[%clk 0:02:14]}  c5 {[%clk 0:02:47]} 13. e5 {[%clk 0:01:59]}  Bxf3 {[%clk 0:02:35]} 14. gxf3 {[%clk 0:01:57]}  cxd4 {[%clk 0:02:35]} 15. e6 {[%clk 0:01:43]}  fxe6 {[%clk 0:02:14]} 16. Bc4 {[%clk 0:00:36]}  O-O {[%clk 0:01:48]} 17. Qe4 {[%clk 0:00:20]}  Nd7 {[%clk 0:01:41]} 18. Qxe6+ {[%clk 0:00:17]}  Kh8 {[%clk 0:01:40]} 19. f4 {[%clk 0:00:14]}  gxf4 {[%clk 0:01:33]} 20. Rg1 {[%clk 0:00:13]}  Rf6 {[%clk 0:01:24]} 21. Qg4 {[%clk 0:00:09]}  Qf8 {[%clk 0:01:13]} 22. Qxd7 {[%clk 0:00:10]}  Rd8 {[%clk 0:01:13]} 23. Qg4 {[%clk 0:00:09]}  dxc3 {[%clk 0:01:12]} 24. Bxf4 {[%clk 0:00:10]}  Rxf4 {[%clk 0:01:09]} 25. Qe6 {[%clk 0:00:05]}  Rd6 {[%clk 0:01:06]} 26. Qe2 {[%clk 0:00:05]}  c2 {[%clk 0:01:05]} 27. Rc1 {[%clk 0:00:02]}  Bc3+ {[%clk 0:00:59]} 28. Kf1 {[%clk 0:00:00]}  Rd2 {[%clk 0:00:56]} 0-1


[Site "https://www.chess.com"]